bitfinex/quotes_BTCUSD_20240803
["timestamp","ask_amount","ask_price","bid_price","bid_amount"]
[1722660965301,0.0615,61573.0,61570.0,0.77452124]
[1722660965556,0.0615,61573.0,61570.0,1.01814624]
[1722660965791,0.0615,61573.0,61570.0,1.01014624]
[1722660966353,0.0615,61573.0,61570.0,0.76652124]
[1722660966597,0.0615,61573.0,61570.0,0.52289624]
[1722660967088,0.0615,61573.0,61570.0,0.53389624]
[1722660967321,0.0615,61573.0,61570.0,0.52289624]
[1722660967551,0.0615,61573.0,61570.0,0.76652124]
[1722660967788,0.0615,61573.0,61570.0,0.53689624]
[1722660968031,0.0615,61573.0,61570.0,0.52289624]
[1722660968289,0.0615,61573.0,61570.0,0.53689624]
[1722660968525,0.0615,61573.0,61570.0,0.76652124]
[1722660968987,0.0615,61573.0,61570.0,0.78052124]
[1722660970162,0.0615,61573.0,61570.0,0.76652124]
[1722660970397,0.0615,61573.0,61570.0,0.76752124]
[1722660970875,0.0615,61573.0,61570.0,0.76652124]
[1722660971128,0.0615,61573.0,61570.0,0.78052124]
[1722660971360,0.0615,61573.0,61570.0,0.52289624]
[1722660971607,0.0615,61573.0,61570.0,0.76652124]
[1722660971878,0.0615,61573.0,61570.0,0.78052124]
[1722660972134,0.0615,61573.0,61570.0,0.76652124]
[1722660972393,0.076,61575.0,61570.0,0.76652124]
[1722660973127,0.00916,61576.0,61575.0,0.365407]
[1722660973370,0.00916,61576.0,61575.0,0.609012]
[1722660973833,0.00916,61576.0,61575.0,1.01007624]
[1722660974084,0.00916,61576.0,61575.0,1.15217624]
[1722660974610,0.00895279,61576.0,61575.0,1.16617624]
[1722660976244,0.00895279,61576.0,61575.0,1.15217624]
[1722660976736,0.00895279,61576.0,61575.0,1.16617624]
[1722660976937,0.00895279,61576.0,61575.0,1.15217624]
[1722660977110,0.00895279,61576.0,61575.0,1.15317624]
[1722660977316,0.00895279,61576.0,61575.0,0.52386624]
[1722660977620,0.00895279,61576.0,61575.0,0.76647124]
[1722660977821,0.00895279,61576.0,61575.0,0.76747124]
[1722660977995,0.00895279,61576.0,61575.0,0.76647124]
[1722660979238,0.00895279,61576.0,61575.0,0.52286624]
[1722660979437,0.00895279,61576.0,61575.0,0.76747124]
[1722660979664,0.00895279,61576.0,61575.0,0.52286624]
[1722660980219,0.00895279,61576.0,61575.0,0.52386624]
[1722660980745,0.00895279,61576.0,61575.0,0.001]
[1722660980960,0.15425279,61576.0,61571.0,1.99084]
[1722660981171,0.121803,61575.0,61571.0,1.99084]
[1722660981400,0.29047957,61575.0,61571.0,1.99084]
[1722660981607,0.15425279,61576.0,61571.0,1.99084]
[1722660981818,0.15425279,61576.0,61573.0,0.121805]
[1722660982252,0.15425279,61576.0,61574.0,0.121804]
[1722660982463,0.15425279,61576.0,61574.0,0.121803]
[1722660982664,0.15425279,61576.0,61575.0,0.014]
[1722660982873,0.07535279,61576.0,61575.0,0.135802]
[1722660983105,0.00995279,61576.0,61575.0,0.365407]
[1722660983339,0.01095279,61576.0,61575.0,0.609012]
[1722660983568,0.00995279,61576.0,61575.0,0.609012]
[1722660984017,0.01095279,61576.0,61575.0,0.376407]
[1722660984246,0.00995279,61576.0,61575.0,0.609012]
[1722660984490,0.01095279,61576.0,61575.0,0.370407]
[1722660985651,0.01095279,61576.0,61575.0,0.77147124]
[1722660985848,0.00895279,61576.0,61575.0,0.76647124]
[1722660986071,0.00895279,61576.0,61575.0,0.78047124]
[1722660986072,0.00995279,61576.0,61575.0,0.78047124]
[1722660988561,0.00995279,61576.0,61575.0,1.02407624]
[1722660989992,0.00995279,61576.0,61575.0,0.78047124]
[1722660990165,0.24451246,61576.0,61575.0,0.53686624]
[1722660990368,0.24451246,61576.0,61575.0,0.78047124]
[1722660990965,0.17861246,61576.0,61575.0,0.78047124]
[1722660991181,0.00995279,61576.0,61575.0,1.40337624]
[1722660994778,0.00916,61580.0,61579.0,0.608972]
[1722660995013,0.00916,61580.0,61579.0,0.86643124]
[1722660996097,0.01016,61580.0,61579.0,0.87943124]
[1722660997602,0.01016,61580.0,61579.0,0.63584224]
[1722660997957,0.17881039,61580.0,61579.0,0.63584224]
[1722660998377,0.01016,61580.0,61579.0,0.63584224]
[1722660998628,0.01016,61580.0,61579.0,0.87943124]
[1722660999418,0.17881001,61580.0,61579.0,0.87943124]
[1722660999709,0.01016,61580.0,61579.0,0.87943124]
[1722661000544,0.17880999,61580.0,61579.0,0.87943124]
[1722661000755,0.01016,61580.0,61579.0,0.87943124]
[1722661001603,0.01016,61580.0,61579.0,1.12302024]
[1722661001799,0.01016,61580.0,61579.0,0.87943124]
[1722661001998,0.01016,61580.0,61579.0,1.12302024]
[1722661002887,0.01016,61580.0,61579.0,0.87943124]
[1722661003273,0.01016,61580.0,61579.0,1.12302024]
[1722661006507,0.00916,61584.0,61583.0,0.608932]
[1722661006734,0.00916,61584.0,61583.0,0.76639124]
[1722661007154,0.00916,61584.0,61583.0,1.07016424]
[1722661008290,0.00916,61584.0,61583.0,1.17016424]
[1722661008542,0.00916,61584.0,61583.0,1.24716424]
[1722661008768,0.00916,61584.0,61583.0,1.27016424]
[1722661008993,0.00916,61584.0,61583.0,1.52073724]
[1722661009424,0.00916,61584.0,61583.0,1.51373724]
[1722661009625,0.00916,61584.0,61583.0,1.52773724]
[1722661010048,0.00916,61584.0,61583.0,1.51373724]
[1722661010252,0.00916,61584.0,61583.0,1.52773724]
[1722661010464,0.00916,61584.0,61583.0,1.51373724]
[1722661011115,0.00916,61584.0,61583.0,1.24716424]
[1722661011398,0.00916,61584.0,61583.0,1.18696424]
[1722661011867,0.00916,61584.0,61583.0,1.18796424]
[1722661012324,0.00916,61584.0,61583.0,1.10996424]
[1722661013226,0.00916,61584.0,61583.0,1.11096424]
[1722661015926,0.00916,61584.0,61583.0,1.10996424]
[1722661016142,0.00916,61584.0,61583.0,1.11096424]
[1722661016405,0.00916,61584.0,61583.0,0.62381824]
[1722661016639,0.00916,61584.0,61583.0,0.37924524]
[1722661016899,0.00916,61584.0,61583.0,0.38024524]
[1722661017309,0.00157439,61586.0,61584.0,2.08335121]
[1722661017509,0.08,61587.0,61584.0,2.08335121]
[1722661017510,0.08,61587.0,61585.0,0.221781]
[1722661017761,0.08,61587.0,61586.0,0.12178]
[1722661017991,0.08,61587.0,61586.0,0.22178]
[1722661019182,0.07495,61589.0,61587.0,0.121778]
[1722661019435,0.07495,61589.0,61588.0,0.221776]
[1722661019922,0.07495,61589.0,61588.0,0.1]
[1722661020639,0.24357975,61589.0,61588.0,0.1]
[1722661021553,0.24357975,61589.0,61588.0,0.11]
[1722661022476,0.24357975,61589.0,61588.0,0.01]
[1722661022722,0.24357975,61589.0,61588.0,0.11]
[1722661022954,0.07495,61589.0,61588.0,0.11]
[1722661023190,0.07495,61589.0,61588.0,0.63278824]
[1722661023191,0.00915,61589.0,61588.0,0.63278824]
[1722661023431,0.00915,61589.0,61588.0,0.87634124]
[1722661024416,0.00915,61589.0,61588.0,0.86634124]
[1722661024907,0.00915,61589.0,61588.0,0.87634124]
[1722661025613,0.00915,61589.0,61588.0,0.89034124]
[1722661026602,0.00915,61589.0,61588.0,1.18389424]
[1722661027542,0.00915,61589.0,61588.0,0.94034124]
[1722661028295,0.00915,61589.0,61588.0,1.18389424]
[1722661028522,0.00915,61589.0,61588.0,1.15989424]
[1722661028752,0.00915,61589.0,61588.0,1.17389424]
[1722661029233,0.00916,61596.0,61588.0,1.17389424]
[1722661029234,0.00916,61596.0,61595.0,0.365289]
[1722661030562,0.17777403,61596.0,61595.0,0.365289]
[1722661031077,0.17777403,61596.0,61595.0,0.375289]
[1722661032009,0.17777403,61596.0,61595.0,0.87627424]
[1722661032489,0.00916,61596.0,61595.0,0.87627424]
[1722661032949,0.00916,61596.0,61595.0,1.11980024]
[1722661034208,0.00916,61596.0,61595.0,1.10980024]
[1722661034443,0.00916,61596.0,61595.0,1.12080024]
[1722661034678,0.00916,61596.0,61595.0,1.10980024]
[1722661035156,0.00916,61596.0,61595.0,1.12380024]
[1722661035387,0.00916,61596.0,61595.0,1.10980024]
[1722661035637,0.00916,61596.0,61595.0,1.12380024]
[1722661035877,0.00916,61596.0,61595.0,1.10980024]
[1722661036344,0.00916,61596.0,61595.0,0.86627424]
[1722661036582,0.00916,61596.0,61595.0,0.62274824]
[1722661037038,0.00916,61596.0,61595.0,0.63674824]
[1722661037527,0.00916,61596.0,61595.0,0.62274824]
[1722661037762,0.00916,61596.0,61595.0,0.63674824]
[1722661038017,0.00916,61596.0,61595.0,0.62274824]
[1722661038252,0.00916,61596.0,61595.0,0.63674824]
[1722661038951,0.00916,61596.0,61595.0,0.39322224]
[1722661039191,0.00916,61596.0,61595.0,0.114]
[1722661039658,0.00916,61596.0,61595.0,0.235763]
[1722661041343,0.00916,61596.0,61595.0,0.292363]
[1722661042300,0.00915,61599.0,61596.0,1.94325721]
[1722661042544,0.16860571,61598.0,61597.0,0.1]
[1722661043771,0.16860571,61598.0,61597.0,0.114]
[1722661044494,0.1686059,61598.0,61597.0,0.114]
[1722661045165,0.00915,61599.0,61597.0,0.114]
[1722661045388,0.130905,61599.0,61597.0,0.114]
[1722661045623,0.1686035,61598.0,61597.0,0.114]
[1722661045854,0.130905,61599.0,61597.0,0.114]
[1722661046085,0.1686045,61598.0,61597.0,0.114]
[1722661046313,0.00915,61599.0,61597.0,0.114]
[1722661046560,0.00915,61599.0,61597.0,0.221758]
[1722661046813,0.00915,61599.0,61597.0,0.113]
[1722661047056,0.00915,61599.0,61598.0,0.41456818]
[1722661047307,0.00915,61599.0,61598.0,0.65808218]
[1722661047510,0.00915,61599.0,61598.0,0.57933024]
[1722661047731,0.17775104,61599.0,61598.0,0.57933024]
[1722661047974,0.00915,61599.0,61598.0,0.57933024]
[1722661048649,0.00915,61599.0,61598.0,0.59233024]
[1722661048860,0.17775011,61599.0,61598.0,0.59233024]
[1722661050925,0.17775011,61599.0,61598.0,0.57933024]
[1722661051163,0.17775011,61599.0,61598.0,0.59333024]
[1722661051388,0.17775011,61599.0,61598.0,0.57933024]
[1722661051618,0.17775011,61599.0,61598.0,0.59333024]
[1722661051849,0.00915,61599.0,61598.0,0.83684424]
[1722661052331,0.00915,61599.0,61598.0,1.18035824]
[1722661053908,0.00915,61599.0,61598.0,1.16635824]
[1722661054394,0.00915,61599.0,61598.0,1.18035824]
[1722661054620,0.00915,61599.0,61598.0,1.16635824]
[1722661054868,0.00915,61599.0,61598.0,1.16735824]
[1722661056071,0.00915,61599.0,61598.0,0.92284424]
[1722661056503,0.00915,61599.0,61598.0,0.92384424]
[1722661057560,0.00915,61599.0,61598.0,0.93322825]
[1722661058404,0.00915,61599.0,61598.0,0.38021624]
[1722661058954,0.29949193,61599.0,61598.0,0.101]
[1722661059437,0.17773693,61599.0,61598.0,0.101]
[1722661059672,0.17773693,61599.0,61598.0,0.1]
[1722661060202,0.78651193,61599.0,61598.0,0.012]
[1722661060639,0.54300193,61599.0,61598.0,0.012]
[1722661062832,0.374415,61599.0,61598.0,0.012]
[1722661063036,0.54302598,61599.0,61598.0,0.012]
[1722661063231,0.252656,61600.0,61599.0,1.40023123]
[1722661063439,0.42126592,61600.0,61599.0,1.40023123]
[1722661063643,0.252656,61600.0,61599.0,1.40023123]
[1722661064110,0.374409,61600.0,61599.0,1.40023123]
[1722661065333,0.130903,61600.0,61599.0,1.40023123]
[1722661065560,0.00915,61600.0,61599.0,1.52198623]
[1722661065734,0.01015,61600.0,61599.0,1.41223123]
[1722661066104,0.01015,61600.0,61599.0,1.53398623]
[1722661066887,0.01015,61600.0,61599.0,1.99595547]
[1722661069586,0.01015,61600.0,61599.0,2.23946547]
[1722661071610,0.01015,61600.0,61599.0,1.99595547]
[1722661072024,0.01015,61600.0,61599.0,1.93495547]
[1722661072232,0.01015,61600.0,61599.0,1.41223123]
[1722661072679,0.131903,61600.0,61599.0,1.41223123]
[1722661072884,0.01015,61600.0,61599.0,1.41223123]
[1722661073331,0.375409,61600.0,61599.0,1.41223123]
[1722661073539,0.78909691,61600.0,61599.0,1.41223123]
[1722661073744,0.78752252,61600.0,61599.0,1.41223123]
[1722661073961,1.08837415,61600.0,61599.0,1.41223123]
[1722661074405,0.84486815,61600.0,61599.0,1.41223123]
[1722661075555,0.30051052,61600.0,61599.0,1.41223123]
[1722661075765,0.59228257,61600.0,61599.0,1.41223123]
[1722661076007,0.59228195,61600.0,61599.0,1.41223123]
[1722661076929,0.54401828,61600.0,61599.0,1.41223123]
[1722661077322,0.34877457,61600.0,61599.0,1.41223123]
[1722661077575,0.22702157,61600.0,61599.0,1.41223123]
[1722661077794,0.22702157,61600.0,61599.0,1.53398623]
[1722661077795,0.17875928,61600.0,61599.0,1.53398623]
[1722661078835,0.17875135,61600.0,61599.0,1.53398623]
[1722661079903,0.17875135,61600.0,61599.0,1.41223123]
[1722661080391,0.54401035,61600.0,61599.0,1.41223123]
[1722661080609,0.85990628,61600.0,61599.0,1.41223123]
[1722661080832,0.78751635,61600.0,61599.0,1.41223123]
[1722661081475,1.01894609,61600.0,61599.0,1.41223123]
[1722661081924,1.01890226,61600.0,61599.0,1.41223123]
[1722661082342,0.88400686,61600.0,61599.0,1.41223123]
[1722661082760,0.78753079,61600.0,61599.0,1.41223123]
[1722661082968,0.64050086,61600.0,61599.0,1.41223123]
[1722661083181,0.78753079,61600.0,61599.0,1.41223123]
[1722661084029,0.54402479,61600.0,61599.0,1.41223123]
[1722661084490,0.67891873,61600.0,61599.0,1.41223123]
[1722661084707,0.54402479,61600.0,61599.0,1.41223123]
[1722661084960,0.85988134,61600.0,61599.0,1.41223123]
[1722661085530,0.99477644,61600.0,61599.0,1.41223123]
[1722661085760,0.75127044,61600.0,61599.0,1.41223123]
[1722661086487,0.99477644,61600.0,61599.0,1.41223123]
[1722661086714,0.92242589,61600.0,61599.0,1.41223123]
[1722661087666,1.2382741,61600.0,61599.0,1.41223123]
[1722661087900,1.46959113,61600.0,61599.0,1.41223123]
[1722661088172,1.87780598,61600.0,61599.0,1.41223123]
[1722661088403,2.31698333,61600.0,61599.0,1.41223123]
[1722661088664,2.52038333,61600.0,61599.0,1.40023123]
[1722661088881,2.57776007,61600.0,61599.0,1.40923123]
[1722661089122,2.55775265,61600.0,61599.0,1.40923123]
[1722661089361,2.66402176,61600.0,61599.0,1.40923123]
[1722661089605,2.50138333,61600.0,61599.0,1.40923123]
[1722661089864,2.50038333,61600.0,61599.0,1.46923123]
[1722661090115,2.51138333,61600.0,61599.0,1.47023123]
[1722661091402,2.30598333,61600.0,61599.0,1.46923123]
[1722661091641,1.80949941,61600.0,61599.0,1.46923123]
[1722661091896,1.48259113,61600.0,61599.0,1.47023123]
[1722661092109,1.48259113,61600.0,61599.0,1.46923123]
[1722661092110,1.46859113,61600.0,61599.0,1.46923123]
[1722661092320,1.48259113,61600.0,61599.0,1.47023123]
[1722661092533,1.08162589,61600.0,61599.0,1.47023123]
[1722661092766,1.08162589,61600.0,61599.0,1.46923123]
[1722661092767,1.06762589,61600.0,61599.0,1.46923123]
[1722661092975,1.06762589,61600.0,61599.0,1.47023123]
[1722661092976,1.08062589,61600.0,61599.0,1.47023123]
[1722661093223,1.15283323,61600.0,61599.0,1.47023123]
[1722661093671,0.73905155,61600.0,61599.0,1.47023123]
[1722661093894,0.73905343,61600.0,61599.0,1.47023123]
[1722661094127,0.69091989,61600.0,61599.0,1.47023123]
[1722661094341,0.9825596,61600.0,61599.0,1.47023123]
[1722661094602,0.9935596,61600.0,61599.0,1.47123123]
[1722661094830,0.9695596,61600.0,61599.0,1.46923123]
[1722661095295,1.40459847,61600.0,61599.0,1.47023123]
[1722661095525,1.40459847,61600.0,61599.0,1.46923123]
[1722661095526,1.30779029,61600.0,61599.0,1.46923123]
[1722661095761,1.72594902,61600.0,61599.0,1.47023123]
[1722661095988,1.48245935,61600.0,61599.0,1.47023123]
[1722661096438,1.48245935,61600.0,61599.0,1.46923123]
[1722661096664,1.47645935,61600.0,61599.0,1.46923123]
[1722661097839,1.48645935,61600.0,61599.0,1.47023123]
[1722661098279,1.47645935,61600.0,61599.0,1.46923123]
[1722661098499,1.48845935,61600.0,61599.0,1.47023123]
[1722661099219,1.48845787,61600.0,61599.0,1.47023123]
[1722661099464,1.47645787,61600.0,61599.0,1.46923123]
[1722661099715,1.48645787,61600.0,61599.0,1.47023123]
[1722661102816,1.48645247,61600.0,61599.0,1.47023123]
[1722661105341,1.39435247,61600.0,61599.0,1.47023123]
[1722661105509,1.39435247,61600.0,61599.0,1.47114423]
[1722661106340,0.44447523,61600.0,61599.0,1.47114423]
[1722661106578,0.44447523,61600.0,61599.0,1.73469923]
[1722661106579,0.32271475,61600.0,61599.0,1.73469923]
[1722661106817,0.32271475,61600.0,61599.0,1.61294423]
[1722661106818,0.18779708,61600.0,61599.0,1.61294423]
[1722661107044,0.30955008,61600.0,61599.0,1.61294423]
[1722661108165,0.29955008,61600.0,61599.0,1.61194423]
[1722661108415,0.30555008,61600.0,61599.0,1.61294423]
[1722661110275,0.30552711,61600.0,61599.0,1.61294423]
[1722661110944,0.18377411,61600.0,61599.0,1.61294423]
[1722661111405,0.30552711,61600.0,61599.0,1.61294423]
[1722661111628,0.30533172,61600.0,61599.0,1.61294423]
[1722661112990,0.18357872,61600.0,61599.0,1.61294423]
[1722661114131,0.18357445,61600.0,61599.0,1.61294423]
[1722661117098,0.18357445,61600.0,61599.0,1.97820923]
[1722661117540,0.18357445,61600.0,61599.0,2.22171923]
[1722661117748,0.01495461,61600.0,61599.0,2.22171923]
[1722661118172,0.00895461,61600.0,61599.0,2.46422923]
[1722661119021,0.00895461,61600.0,61599.0,2.46522923]
[1722661119230,0.00895461,61600.0,61599.0,2.46422923]
[1722661119648,0.00895461,61600.0,61599.0,2.47322923]
[1722661119649,0.00995461,61600.0,61599.0,2.47322923]
[1722661119878,0.00895461,61600.0,61599.0,2.46422923]
[1722661121777,0.00995461,61600.0,61599.0,2.47822923]
[1722661122341,0.00995461,61600.0,61599.0,2.63568847]
[1722661122556,0.00995461,61600.0,61599.0,2.73568847]
[1722661126044,0.00995461,61600.0,61599.0,2.7452118]
[1722661139277,0.00995461,61600.0,61599.0,2.8018118]
[1722661141138,0.00995461,61600.0,61599.0,3.0453218]
[1722661142083,0.00895461,61600.0,61599.0,3.0313218]
[1722661142534,0.00995461,61600.0,61599.0,3.0453218]
[1722661142807,0.00895461,61600.0,61599.0,3.0313218]
[1722661143036,0.01995461,61600.0,61599.0,3.0323218]
[1722661143267,0.01995461,61600.0,61599.0,3.0313218]
[1722661143503,0.00895461,61600.0,61599.0,3.0313218]
[1722661143963,0.00915,61601.0,61600.0,1.24902239]
[1722661144212,0.00915,61601.0,61600.0,1.58523357]
[1722661145333,0.00915,61601.0,61600.0,1.58623357]
[1722661148737,0.00915,61601.0,61600.0,1.58523357]
[1722661149372,0.00915,61601.0,61600.0,1.34272757]
[1722661149373,0.01015,61601.0,61600.0,1.34272757]
[1722661149556,0.00915,61601.0,61600.0,1.34172757]
[1722661149784,0.00915,61601.0,61600.0,1.07606963]
[1722661149985,0.00915,61601.0,61600.0,1.07706963]
[1722661149986,0.01015,61601.0,61600.0,1.07706963]
[1722661151183,0.01015,61601.0,61600.0,1.32057563]
[1722661151384,0.00915,61601.0,61600.0,1.07606963]
[1722661151631,0.02315,61601.0,61600.0,1.07706963]
[1722661151802,0.02315,61601.0,61600.0,1.32057563]
[1722661152005,0.00915,61601.0,61600.0,1.07606963]
[1722661152250,0.02315,61601.0,61600.0,1.07706963]
[1722661152452,0.00915,61601.0,61600.0,1.07606963]
[1722661152825,0.02315,61601.0,61600.0,1.07706963]
[1722661157128,0.01350461,61601.0,61600.0,1.07706963]
[1722661158645,0.01350461,61601.0,61600.0,1.32057563]
[1722661158855,0.01350461,61601.0,61600.0,1.07706963]
[1722661159064,0.01350461,61601.0,61600.0,1.32057563]
[1722661159269,0.01350461,61601.0,61600.0,1.32157563]
[1722661159270,0.02750461,61601.0,61600.0,1.32157563]
[1722661159688,0.02750461,61601.0,61600.0,1.07806963]
[1722661160107,0.02750461,61601.0,61600.0,1.32157563]
[1722661160742,0.02750461,61601.0,61600.0,1.07806963]
[1722661161211,0.02750461,61601.0,61600.0,0.11164539]
[1722661161458,0.46365775,61601.0,61600.0,0.01164539]
[1722661161687,0.75536672,61601.0,61600.0,0.01164539]
[1722661161940,1.08555184,61601.0,61600.0,0.01164539]
[1722661162181,1.20606926,61601.0,61600.0,0.01164539]
[1722661162419,1.16801484,61601.0,61600.0,0.01064539]
[1722661162645,1.15453089,61601.0,61600.0,0.00964539]
[1722661163156,1.15553089,61601.0,61600.0,0.01664539]
[1722661163379,1.15555423,61601.0,61600.0,0.01664539]
[1722661163606,1.15556303,61601.0,61600.0,0.01664539]
[1722661164237,0.06575,61602.0,61601.0,0.2446682]
[1722661164238,0.309248,61602.0,61601.0,0.2446682]
[1722661164465,0.52609539,61602.0,61601.0,0.2446682]
[1722661164899,0.52609571,61602.0,61601.0,0.2446682]
[1722661165333,1.14484071,61602.0,61601.0,0.2446682]
[1722661165549,1.08761863,61602.0,61601.0,0.2446682]
[1722661165764,1.13582899,61602.0,61601.0,0.2396682]
[1722661165946,1.13682899,61602.0,61601.0,0.2396682]
[1722661166359,1.08861863,61602.0,61601.0,0.2396682]
[1722661166599,0.89331851,61602.0,61601.0,0.2396682]
[1722661166806,0.84512063,61602.0,61601.0,0.2396682]
[1722661167215,0.88692063,61602.0,61601.0,0.2396682]
[1722661167642,0.718295,61602.0,61601.0,0.2396682]
[1722661168355,0.660695,61602.0,61601.0,0.2396682]
[1722661168557,0.659695,61602.0,61601.0,0.2406682]
[1722661168780,0.659695,61602.0,61601.0,0.2436682]
[1722661169008,0.659695,61602.0,61601.0,0.2396682]
[1722661169238,0.659695,61602.0,61601.0,0.2426682]
[1722661169449,0.659695,61602.0,61601.0,0.2436682]
[1722661170341,0.00915,61602.0,61601.0,0.2406682]
[1722661170565,0.00915,61602.0,61601.0,0.2396682]
[1722661170790,0.00915,61602.0,61601.0,0.3634192]
[1722661171014,0.00915,61602.0,61601.0,0.44117114]
[1722661171236,0.00915,61602.0,61601.0,0.68467314]
[1722661171450,0.01015,61602.0,61601.0,0.68567314]
[1722661171669,0.01115,61602.0,61601.0,0.68467314]
[1722661171934,0.01215,61602.0,61601.0,0.68667314]
[1722661172606,0.01115,61602.0,61601.0,0.68567314]
[1722661172845,0.01115,61602.0,61601.0,0.44217114]
[1722661173056,0.01115,61602.0,61601.0,0.2416682]
[1722661173057,0.172599,61602.0,61601.0,0.2416682]
[1722661173267,0.659595,61602.0,61601.0,0.2416682]
[1722661173903,0.660595,61602.0,61601.0,0.2426682]
[1722661174323,0.670595,61602.0,61601.0,0.2426682]
[1722661174767,0.670595,61602.0,61601.0,0.2396682]
[1722661174768,0.657595,61602.0,61601.0,0.2396682]
[1722661175205,0.657595,61602.0,61601.0,0.2416682]
[1722661175206,0.658595,61602.0,61601.0,0.2416682]
[1722661175436,0.414097,61602.0,61601.0,0.2406682]
[1722661175661,0.414097,61602.0,61601.0,0.2426682]
[1722661176102,0.414097,61602.0,61601.0,0.2406682]
[1722661176319,0.58271538,61602.0,61601.0,0.2416682]
[1722661176530,0.414097,61602.0,61601.0,0.2416682]
[1722661177011,0.374397,61602.0,61601.0,0.2416682]
[1722661177223,0.54301254,61602.0,61601.0,0.2416682]
[1722661177436,0.374397,61602.0,61601.0,0.2416682]
[1722661177646,0.374397,61602.0,61601.0,0.2426682]
[1722661178079,0.374397,61602.0,61601.0,0.3209682]
[1722661178080,0.00915,61602.0,61601.0,0.3209682]
[1722661178773,0.00915,61602.0,61601.0,0.4427192]
[1722661182346,0.00915,61602.0,61601.0,0.7477212]
[1722661182595,0.00915,61602.0,61601.0,0.5042192]
[1722661183070,0.00915,61602.0,61601.0,0.7477212]
[1722661184541,0.00915,61602.0,61601.0,0.5042192]
[1722661184970,0.00915,61602.0,61601.0,0.6259702]
[1722661185192,0.00915,61602.0,61601.0,0.5042192]
[1722661185617,0.00915,61602.0,61601.0,0.7477212]
[1722661186703,0.00915,61602.0,61601.0,0.9912232]
[1722661186918,0.00915,61602.0,61601.0,1.14868244]
[1722661187173,0.00915,61602.0,61601.0,1.49218444]
[1722661188119,0.00915,61602.0,61601.0,1.49118444]
[1722661188367,0.00915,61602.0,61601.0,1.48918444]
[1722661188615,0.00915,61602.0,61601.0,1.49618444]
[1722661188858,0.00915,61602.0,61601.0,1.48918444]
[1722661189317,0.01115,61602.0,61601.0,1.50018444]
[1722661190991,0.01115,61602.0,61601.0,1.50937607]
[1722661191704,0.01115,61602.0,61601.0,1.25668244]
[1722661192638,0.01115,61602.0,61601.0,1.01318044]
[1722661192872,0.01115,61602.0,61601.0,1.25668244]
[1722661196933,0.01115,61602.0,61601.0,1.01318044]
[1722661197371,0.01115,61602.0,61601.0,1.25668244]
[1722661199430,0.01115,61602.0,61601.0,1.01318044]
[1722661200577,0.01115,61602.0,61601.0,1.25668244]
[1722661200794,0.01115,61602.0,61601.0,1.01318044]
[1722661201276,0.01115,61602.0,61601.0,1.25668244]
[1722661201731,0.01115,61602.0,61601.0,0.5507192]
[1722661201957,0.01115,61602.0,61601.0,0.2506682]
[1722661201958,0.132899,61602.0,61601.0,0.2506682]
[1722661202168,0.17976378,61602.0,61601.0,0.2506682]
[1722661202401,0.01115,61602.0,61601.0,0.2506682]
[1722661202599,0.18133817,61602.0,61601.0,0.2506682]
[1722661202891,0.17976378,61602.0,61601.0,0.2506682]
[1722661203121,0.17876378,61602.0,61601.0,0.2446682]
[1722661203375,0.17876378,61602.0,61601.0,0.5113192]
[1722661203618,0.17876378,61602.0,61601.0,0.7498212]
[1722661203619,0.00915,61602.0,61601.0,0.7498212]
[1722661203891,0.00915,61602.0,61601.0,0.7538212]
[1722661204361,0.00915,61602.0,61601.0,0.7498212]
[1722661204602,0.01015,61602.0,61601.0,0.7538212]
[1722661204798,0.01015,61602.0,61601.0,0.7508212]
[1722661205004,0.00915,61602.0,61601.0,0.90728044]
[1722661205465,0.01015,61602.0,61601.0,1.15578244]
[1722661205949,0.01015,61602.0,61601.0,0.5083192]
[1722661206163,0.01015,61602.0,61601.0,0.2446682]
[1722661206372,0.01015,61602.0,61601.0,0.2486682]
[1722661206373,0.17975743,61602.0,61601.0,0.2486682]
[1722661206581,0.01115,61602.0,61601.0,0.2446682]
[1722661206799,0.01015,61602.0,61601.0,0.2396682]
[1722661207008,0.01115,61602.0,61601.0,0.3664192]
[1722661207610,0.01115,61602.0,61601.0,0.8534232]
[1722661207858,0.01115,61602.0,61601.0,0.9953232]
[1722661208065,0.01215,61602.0,61601.0,1.0003232]
[1722661209380,0.01215,61602.0,61601.0,1.15778244]
[1722661209580,0.01215,61602.0,61601.0,1.40128444]
[1722661211909,0.01196043,61602.0,61601.0,1.40128444]
[1722661213608,0.01196043,61602.0,61601.0,0.3299682]
[1722661213821,0.01196043,61602.0,61601.0,0.2496682]
[1722661214691,0.01196043,61602.0,61601.0,0.3714192]
[1722661214692,0.18055908,61602.0,61601.0,0.3714192]
[1722661214897,0.18056391,61602.0,61601.0,0.3714192]
[1722661215371,0.18056391,61602.0,61601.0,0.6902212]
[1722661215372,0.01196043,61602.0,61601.0,0.6902212]
[1722661218814,0.01196043,61602.0,61601.0,1.15768244]
[1722661219223,0.01196043,61602.0,61601.0,1.25768244]
[1722661220075,0.01196043,61602.0,61601.0,1.50118444]
[1722661220289,0.01196043,61602.0,61601.0,1.25768244]
[1722661221337,0.01196043,61602.0,61601.0,1.50118444]
[1722661221767,0.01196043,61602.0,61601.0,1.25768244]
[1722661222179,0.01196043,61602.0,61601.0,1.50118444]
[1722661223016,0.00871376,61602.0,61601.0,1.50118444]
[1722661223934,0.00671376,61602.0,61601.0,1.49618444]
[1722661224118,0.00571376,61602.0,61601.0,1.49118444]
[1722661224346,0.00671376,61602.0,61601.0,1.49618444]
[1722661225488,0.00771376,61602.0,61601.0,1.50818444]
[1722661225706,0.00671376,61602.0,61601.0,1.49618444]
[1722661225946,0.00671376,61602.0,61601.0,1.49718444]
[1722661225947,0.01471376,61602.0,61601.0,1.49718444]
[1722661226170,0.01471376,61602.0,61601.0,1.49118444]
[1722661226171,0.01371376,61602.0,61601.0,1.49118444]
[1722661226631,0.01371376,61602.0,61601.0,1.51918444]
[1722661226847,0.01371376,61602.0,61601.0,1.76268644]
[1722661227050,0.00571376,61602.0,61601.0,1.49118444]
[1722661227265,0.00571376,61602.0,61601.0,1.73468644]
[1722661227477,0.00571376,61602.0,61601.0,1.73568644]
[1722661227693,0.00571376,61602.0,61601.0,1.73768644]
[1722661227903,0.00571376,61602.0,61601.0,1.80768594]
[1722661228318,0.01371376,61602.0,61601.0,1.80868594]
[1722661228519,0.00571376,61602.0,61601.0,1.80868594]
[1722661228931,0.01671376,61602.0,61601.0,1.80968594]
[1722661229141,0.00571376,61602.0,61601.0,1.80868594]
[1722661229560,0.01371376,61602.0,61601.0,1.80968594]
[1722661229776,0.01371376,61602.0,61601.0,1.80768594]
[1722661229991,0.02071376,61602.0,61601.0,1.80968594]
[1722661230255,0.02071376,61602.0,61601.0,1.8098866]